lending/lending_fUSD_20241115
["ID","MTS","AMOUNT","RATE_DAILY","PERIOD"]
[342285069,1731694252624,-500.0,9.793e-05,2]
[342285070,1731694252634,-573.75573535,9.793e-05,2]
[342285071,1731694252643,-500.0,9.793e-05,2]
[342285072,1731694252653,-500.0,9.793e-05,2]
[342285073,1731694252662,-500.0,9.793e-05,2]
[342285074,1731694252671,-848.75,9.793e-05,2]
[342285075,1731694252680,-500.0,9.793e-05,2]
[342285076,1731694252689,-500.0,9.793e-05,2]
[342285077,1731694252699,-500.0,9.793e-05,2]
[342285078,1731694252708,-723.22,9.793e-05,2]
[342285079,1731694252717,-500.0,9.793e-05,2]
[342285080,1731694252727,-221.04,9.793e-05,2]
[342285081,1731694252737,-1798.04,9.793e-05,2]
[342285082,1731694252746,-500.0,9.793e-05,2]
[342285083,1731694252756,-1607.14,9.793e-05,2]
[342285084,1731694252765,-661.63,9.793e-05,2]
[342285085,1731694252776,-500.0,9.793e-05,2]
[342285086,1731694252786,-500.0,9.793e-05,2]
[342285087,1731694252795,-500.0,9.793e-05,2]
[342285088,1731694252804,-500.0,9.793e-05,2]
[342285089,1731694252813,-500.0,9.793e-05,2]
[342285090,1731694252822,-936.56,9.793e-05,2]
[342285091,1731694252832,-981.13,9.793e-05,2]
[342285092,1731694252841,-1349.44,9.793e-05,2]
[342285093,1731694252851,-846.22,9.793e-05,2]
[342285094,1731694252860,-500.0,9.793e-05,2]
[342285095,1731694252869,-1443.55,9.793e-05,2]
[342285096,1731694252878,-500.0,9.793e-05,2]
[342285097,1731694252887,-500.0,9.793e-05,2]
[342285098,1731694252896,-500.0,9.793e-05,2]
[342285099,1731694252906,-510.69,9.793e-05,2]
[342285100,1731694252916,-743.66,9.793e-05,2]
[342285101,1731694252925,-500.0,9.793e-05,2]
[342285102,1731694252935,-590.4,9.793e-05,2]
[342285103,1731694252944,-500.0,9.793e-05,2]
[342285104,1731694252954,-510.98,9.793e-05,2]
[342285105,1731694252968,-822.53,9.793e-05,2]
[342285106,1731694252977,-500.0,9.793e-05,2]
[342285107,1731694252987,-718.38,9.793e-05,2]
[342285108,1731694252996,-306.75149334,9.793e-05,2]
[342285109,1731694253006,-500.0,9.793e-05,2]
[342285110,1731694253015,-569.69,9.793e-05,2]
[342285111,1731694253027,-500.0,9.793e-05,2]
[342285112,1731694253038,-1150.64,9.793e-05,2]
[342285113,1731694253048,-500.0,9.793e-05,2]
[342285114,1731694253057,-500.0,9.793e-05,2]
[342285115,1731694253067,-500.0,9.793e-05,2]
[342285116,1731694253077,-1041.05,9.793e-05,2]
[342285117,1731694253087,-1621.69,9.793e-05,2]
[342285118,1731694253096,-500.0,9.793e-05,2]
[342285119,1731694253105,-500.0,9.793e-05,2]
[342285120,1731694253115,-2209.9,9.793e-05,2]
[342285121,1731694253124,-3512.82,9.793e-05,2]
[342285122,1731694253134,-500.0,9.793e-05,2]
[342285123,1731694253143,-500.0,9.793e-05,2]
[342285124,1731694253152,-570.65,9.793e-05,2]
[342285125,1731694253162,-500.0,9.793e-05,2]
[342285126,1731694253172,-500.0,9.793e-05,2]
[342285127,1731694253182,-3134.84,9.793e-05,2]
[342285128,1731694253192,-2602.02,9.793e-05,2]
[342285129,1731694253202,-500.0,9.793e-05,2]
[342285130,1731694253211,-537.66,9.793e-05,2]
[342285131,1731694253221,-615.49,9.793e-05,2]
[342285132,1731694253230,-513.01,9.793e-05,2]
[342285133,1731694253240,-500.0,9.793e-05,2]
[342285134,1731694253249,-924.06,9.793e-05,2]
[342285135,1731694253258,-927.5,9.793e-05,2]
[342285136,1731694253268,-1026.64,9.793e-05,2]
[342285137,1731694253280,-500.0,9.793e-05,2]
[342285138,1731694253290,-943.65,9.793e-05,2]
[342285139,1731694253300,-500.0,9.793e-05,2]
[342285140,1731694253309,-500.0,9.793e-05,2]
[342285141,1731694253318,-500.0,9.793e-05,2]
[342285142,1731694253328,-500.0,9.793e-05,2]
[342285143,1731694253338,-1998.77,9.793e-05,2]
[342285144,1731694253347,-500.0,9.793e-05,2]
[342285145,1731694253356,-529.99,9.793e-05,2]
[342285146,1731694253365,-516.86,9.793e-05,2]
[342285147,1731694253374,-500.0,9.793e-05,2]
[342285148,1731694253383,-500.0,9.793e-05,2]
[342285149,1731694253392,-500.0,9.793e-05,2]
[342285150,1731694253402,-500.0,9.793e-05,2]
[342285151,1731694253411,-526.46,9.793e-05,2]
[342285152,1731694253421,-723.07,9.793e-05,2]
[342285153,1731694253431,-500.0,9.793e-05,2]
[342285154,1731694253440,-500.0,9.793e-05,2]
[342285155,1731694253449,-500.0,9.793e-05,2]
[342285156,1731694253459,-500.0,9.793e-05,2]
[342285157,1731694253468,-1384.55,9.793e-05,2]
[342285158,1731694253478,-500.0,9.793e-05,2]
[342285159,1731694253487,-500.0,9.793e-05,2]
[342285160,1731694253496,-500.0,9.793e-05,2]
[342285161,1731694253506,-626.1,9.793e-05,2]
[342285162,1731694253515,-1041.5,9.793e-05,2]
[342285163,1731694253524,-412.42841928,9.793e-05,2]
[342285164,1731694253536,-500.0,9.793e-05,2]
[342285165,1731694253544,-500.0,9.793e-05,2]
[342285166,1731694253553,-667.51,9.793e-05,2]
[342285167,1731694253562,-500.0,9.793e-05,2]
[342285168,1731694253571,-661.01,9.793e-05,2]
[342285169,1731694253581,-500.0,9.793e-05,2]
[342285170,1731694253590,-500.0,9.793e-05,2]
[342285171,1731694253599,-253.40549217,9.793e-05,2]
[342285172,1731694253608,-500.0,9.793e-05,2]
[342285173,1731694253617,-1238.12,9.793e-05,2]
[342285174,1731694253626,-538.44,9.793e-05,2]
[342285175,1731694253635,-500.0,9.793e-05,2]
[342285176,1731694253644,-500.0,9.793e-05,2]
[342285177,1731694253653,-1166.81,9.793e-05,2]
[342285178,1731694253662,-500.0,9.793e-05,2]
[342285179,1731694253671,-500.0,9.793e-05,2]
[342285180,1731694253680,-500.0,9.793e-05,2]
[342285181,1731694253689,-500.0,9.793e-05,2]
[342285182,1731694253698,-500.0,9.793e-05,2]
[342285183,1731694253707,-1115.63,9.793e-05,2]
[342285184,1731694253717,-500.0,9.793e-05,2]
[342285185,1731694253726,-609.85,9.793e-05,2]
[342285186,1731694253735,-870.93,9.793e-05,2]
[342285187,1731694253745,-856.18,9.793e-05,2]
[342285188,1731694253754,-894.3,9.793e-05,2]
[342285189,1731694253764,-628.6,9.793e-05,2]
[342285190,1731694253773,-1290.18,9.793e-05,2]
[342285191,1731694253785,-500.0,9.793e-05,2]
[342285192,1731694253794,-641.07,9.793e-05,2]
[342285193,1731694253803,-500.0,9.793e-05,2]
[342285194,1731694253813,-500.0,9.793e-05,2]
[342285195,1731694253822,-500.0,9.793e-05,2]
[342285196,1731694253831,-687.53,9.793e-05,2]
[342285197,1731694253840,-500.0,9.793e-05,2]
[342285198,1731694253849,-500.0,9.793e-05,2]
[342285199,1731694253858,-2092.61,9.793e-05,2]
[342285200,1731694253867,-592.92,9.793e-05,2]
[342285201,1731694253876,-500.0,9.793e-05,2]
[342285202,1731694253885,-500.0,9.793e-05,2]
[342285203,1731694253894,-500.0,9.793e-05,2]
[342285204,1731694253903,-500.0,9.793e-05,2]
[342285205,1731694253912,-2064.55,9.793e-05,2]
[342285206,1731694253922,-500.0,9.793e-05,2]
[342285207,1731694253931,-2064.55,9.793e-05,2]
[342285208,1731694253940,-500.0,9.793e-05,2]
[342285209,1731694253950,-569.43,9.793e-05,2]
[342285210,1731694253964,-384.11788915,9.793e-05,2]
[342285211,1731694253973,-1962.96,9.793e-05,2]
[342285212,1731694253982,-4793.06,9.793e-05,2]
[342285213,1731694253992,-500.0,9.793e-05,2]
[342285214,1731694254003,-500.0,9.793e-05,2]
[342285215,1731694254012,-500.0,9.793e-05,2]
[342285216,1731694254021,-500.0,9.793e-05,2]
[342285217,1731694254032,-500.0,9.793e-05,2]
[342285218,1731694254042,-2429.02,9.793e-05,2]
[342285219,1731694254051,-575.4,9.793e-05,2]
[342285220,1731694254064,-500.0,9.793e-05,2]
[342285221,1731694254074,-5513.04,9.793e-05,2]
[342285222,1731694254083,-500.0,9.793e-05,2]
[342285223,1731694254093,-500.0,9.793e-05,2]
[342285224,1731694254102,-500.0,9.793e-05,2]
[342285225,1731694254111,-603.44009118,9.793e-05,2]
[342285226,1731694254121,-996.71,9.793e-05,2]
[342285227,1731694254131,-500.0,9.793e-05,2]
[342285228,1731694254140,-500.0,9.793e-05,2]
[342285229,1731694254149,-724.49,9.793e-05,2]
[342285230,1731694254157,-500.0,9.793e-05,2]
[342285231,1731694254167,-500.0,9.793e-05,2]
[342285232,1731694254176,-500.0,9.793e-05,2]
[342285233,1731694254186,-803.24,9.793e-05,2]
[342285234,1731694254195,-500.0,9.793e-05,2]
[342285235,1731694254207,-500.0,9.793e-05,2]
[342285236,1731694254217,-500.0,9.793e-05,2]
[342285237,1731694254226,-500.0,9.793e-05,2]
[342285238,1731694254235,-500.0,9.793e-05,2]
[342285239,1731694254244,-500.0,9.793e-05,2]
[342285240,1731694254253,-726.77,9.793e-05,2]
[342285241,1731694254262,-6365.68,9.793e-05,2]
[342285242,1731694254271,-1930.36,9.793e-05,2]
[342285243,1731694254282,-608.92,9.793e-05,2]
[342285244,1731694254291,-500.0,9.793e-05,2]
[342285245,1731694254300,-2963.35,9.793e-05,2]
[342285246,1731694254309,-500.0,9.793e-05,2]
[342285247,1731694254318,-500.0,9.793e-05,2]
[342285248,1731694254327,-500.0,9.793e-05,2]
[342285249,1731694254336,-2966.56,9.793e-05,2]
[342285250,1731694254345,-500.0,9.793e-05,2]
[342285251,1731694254354,-500.0,9.793e-05,2]
[342285252,1731694254364,-2966.56,9.793e-05,2]
[342285253,1731694254373,-661.07,9.793e-05,2]
[342285254,1731694254382,-363.85856794,9.793e-05,2]
[342285255,1731694254391,-732.38,9.793e-05,2]
[342285256,1731694254400,-500.0,9.793e-05,2]
[342285257,1731694254409,-920.5,9.793e-05,2]
[342285258,1731694254419,-500.0,9.793e-05,2]
[342285259,1731694254428,-742.47,9.793e-05,2]
[342285260,1731694254437,-500.0,9.793e-05,2]
[342285261,1731694254446,-500.0,9.793e-05,2]
[342285262,1731694254455,-500.0,9.793e-05,2]
[342285263,1731694254464,-1001.64,9.793e-05,2]
[342285264,1731694254474,-500.0,9.793e-05,2]
[342285265,1731694254483,-500.0,9.793e-05,2]
[342285266,1731694254493,-1356.87,9.793e-05,2]
[342285267,1731694254502,-500.0,9.793e-05,2]
[342285268,1731694254511,-500.0,9.793e-05,2]
[342285269,1731694254520,-613.3,9.793e-05,2]
[342285270,1731694254532,-5604.37,9.793e-05,2]
[342285271,1731694254541,-5604.37,9.793e-05,2]
[342285272,1731694254551,-566.14,9.793e-05,2]
[342285273,1731694254560,-684.01,9.793e-05,2]
[342285274,1731694254570,-2544.5,9.793e-05,2]
[342285275,1731694254579,-2544.5,9.793e-05,2]
[342285276,1731694254590,-859.06,9.793e-05,2]
[342285277,1731694254599,-500.0,9.793e-05,2]
[342285278,1731694254608,-500.0,9.793e-05,2]
[342285279,1731694254617,-2544.5,9.793e-05,2]
[342285280,1731694254626,-500.0,9.793e-05,2]
[342285281,1731694254635,-500.0,9.793e-05,2]
[342285282,1731694254644,-27914.34,9.793e-05,2]
[342285283,1731694254654,-500.0,9.793e-05,2]
[342285284,1731694254663,-3048.91,9.793e-05,2]
[342285285,1731694254672,-675.99,9.793e-05,2]
[342285286,1731694254681,-3048.91,9.793e-05,2]
[342285287,1731694254691,-500.0,9.793e-05,2]
[342285288,1731694254700,-1903.08,9.793e-05,2]
[342285289,1731694254708,-1287.98,9.793e-05,2]
[342285290,1731694254718,-500.0,9.793e-05,2]
[342285291,1731694254727,-4136.21,9.793e-05,2]
[342285292,1731694254735,-4136.21,9.793e-05,2]
[342285293,1731694254744,-4136.21,9.793e-05,2]
[342285294,1731694254754,-500.0,9.793e-05,2]
[342285295,1731694254763,-500.0,9.793e-05,2]
[342285296,1731694254772,-500.0,9.793e-05,2]
[342285297,1731694254784,-500.0,9.793e-05,2]
[342285298,1731694254793,-500.0,9.793e-05,2]
[342285299,1731694254802,-858.99,9.793e-05,2]
[342285300,1731694254811,-858.99,9.793e-05,2]
[342285301,1731694254820,-1256.42,9.793e-05,2]
[342285302,1731694254830,-500.0,9.793e-05,2]
[342285303,1731694254839,-562.98,9.793e-05,2]
[342285304,1731694254848,-500.0,9.793e-05,2]
[342285305,1731694254858,-544.47,9.793e-05,2]
[342285306,1731694254867,-1510.02,9.793e-05,2]
[342285307,1731694254876,-2074.67,9.793e-05,2]
[342285308,1731694254885,-500.0,9.793e-05,2]
[342285309,1731694254894,-500.0,9.793e-05,2]
[342285310,1731694254904,-2847.51,9.793e-05,2]
[342285311,1731694254913,-500.0,9.793e-05,2]
[342285312,1731694254922,-500.0,9.793e-05,2]
[342285313,1731694254931,-500.0,9.793e-05,2]
[342285314,1731694254940,-1580.95,9.793e-05,2]
[342285315,1731694254949,-973.26,9.793e-05,2]
[342285316,1731694254962,-1398.16,9.793e-05,2]
[342285317,1731694254972,-575.21,9.793e-05,2]
[342285318,1731694254981,-500.0,9.793e-05,2]
[342285319,1731694254990,-4678.34,9.793e-05,2]
[342285320,1731694254999,-4678.34,9.793e-05,2]
[342285321,1731694255010,-500.0,9.793e-05,2]
[342285322,1731694255020,-866.1,9.793e-05,2]
[342285323,1731694255030,-866.1,9.793e-05,2]
[342285324,1731694255041,-866.1,9.793e-05,2]
[342285325,1731694255050,-2777.64,9.793e-05,2]
[342285326,1731694255059,-500.0,9.793e-05,2]
[342285327,1731694255069,-500.0,9.793e-05,2]
[342285328,1731694255078,-608.09,9.793e-05,2]
[342285329,1731694255088,-500.0,9.793e-05,2]
[342285330,1731694255098,-945.74,9.793e-05,2]
[342285331,1731694255107,-2472.18,9.793e-05,2]
[342285332,1731694255116,-500.0,9.793e-05,2]
[342285333,1731694255127,-500.0,9.793e-05,2]
[342285334,1731694255136,-500.0,9.793e-05,2]
[342285335,1731694255146,-2073.68,9.793e-05,2]
[342285336,1731694255155,-500.0,9.793e-05,2]
[342285337,1731694255165,-500.0,9.793e-05,2]
[342285338,1731694255174,-775.81,9.793e-05,2]
[342285339,1731694255184,-1087.19,9.793e-05,2]
[342285340,1731694255194,-500.0,9.793e-05,2]
[342285341,1731694255203,-775.81,9.793e-05,2]
[342285342,1731694255213,-617.16,9.793e-05,2]
[342285343,1731694255222,-775.81,9.793e-05,2]
[342285344,1731694255231,-500.0,9.793e-05,2]
[342285345,1731694255240,-500.0,9.793e-05,2]
[342285346,1731694255250,-543.87,9.793e-05,2]
[342285347,1731694255259,-1107.14,9.793e-05,2]
[342285348,1731694255268,-500.0,9.793e-05,2]
[342285349,1731694255280,-2544.2,9.793e-05,2]
[342285350,1731694255289,-500.0,9.793e-05,2]
[342285351,1731694255298,-500.0,9.793e-05,2]
[342285352,1731694255307,-1099.06,9.793e-05,2]
[342285353,1731694255316,-500.0,9.793e-05,2]
[342285354,1731694255326,-500.0,9.793e-05,2]
[342285355,1731694255337,-500.0,9.793e-05,2]
[342285356,1731694255347,-500.0,9.793e-05,2]
[342285357,1731694255357,-1322.36,9.793e-05,2]
[342285358,1731694255366,-1322.36,9.793e-05,2]
[342285359,1731694255375,-1322.36,9.793e-05,2]
[342285360,1731694255384,-500.0,9.793e-05,2]
[342285361,1731694255394,-3531.55,9.793e-05,2]
[342285362,1731694255405,-500.0,9.793e-05,2]
[342285363,1731694255414,-500.0,9.793e-05,2]
[342285364,1731694255423,-500.0,9.793e-05,2]
[342285365,1731694255433,-500.0,9.793e-05,2]
[342285366,1731694255442,-500.0,9.793e-05,2]
[342285367,1731694255451,-500.0,9.793e-05,2]
[342285368,1731694255459,-500.0,9.793e-05,2]
[342285369,1731694255469,-965.19,9.793e-05,2]
[342285370,1731694255478,-500.0,9.793e-05,2]
[342285371,1731694255488,-2427.28,9.793e-05,2]
[342285372,1731694255497,-555.41324435,9.793e-05,2]
[342285373,1731694255506,-1552.64,9.793e-05,2]
[342285374,1731694255515,-500.0,9.793e-05,2]
[342285375,1731694255525,-500.0,9.793e-05,2]
[342285376,1731694255535,-500.0,9.793e-05,2]
[342285377,1731694255544,-500.0,9.793e-05,2]
[342285378,1731694255554,-500.0,9.793e-05,2]
[342285379,1731694255563,-1068.7,9.793e-05,2]
[342285380,1731694255574,-500.0,9.793e-05,2]
[342285381,1731694255583,-659.46,9.793e-05,2]
[342285382,1731694255593,-1613.92,9.793e-05,2]
[342285383,1731694255603,-659.46,9.793e-05,2]
[342285384,1731694255612,-659.46,9.793e-05,2]
[342285385,1731694255622,-500.0,9.793e-05,2]
[342285386,1731694255631,-556.68,9.793e-05,2]
[342285387,1731694255641,-500.0,9.793e-05,2]
[342285388,1731694255650,-736.05,9.793e-05,2]
[342285389,1731694255659,-305.84174067,9.793e-05,2]
[342285390,1731694255668,-500.0,9.793e-05,2]
[342285391,1731694255678,-500.0,9.793e-05,2]
[342285392,1731694255687,-3058.28,9.793e-05,2]
[342285393,1731694255696,-500.0,9.793e-05,2]
[342285394,1731694255705,-500.0,9.793e-05,2]
[342285395,1731694255714,-500.0,9.793e-05,2]
[342285396,1731694255723,-500.0,9.793e-05,2]
[342285397,1731694255732,-500.0,9.793e-05,2]
[342285398,1731694255742,-500.0,9.793e-05,2]
[342285399,1731694255751,-172.32,9.793e-05,2]
[342285400,1731694255760,-500.0,9.793e-05,2]
[342285401,1731694255769,-500.0,9.793e-05,2]
[342285402,1731694255779,-4078.51,9.793e-05,2]
[342285403,1731694255788,-4078.51,9.793e-05,2]
[342285404,1731694255797,-554.16087605,9.793e-05,2]
[342285405,1731694255806,-631.10522081,9.793e-05,2]
[342285406,1731694255815,-500.0,9.793e-05,2]
[342285407,1731694255825,-500.0,9.793e-05,2]
[342285408,1731694255833,-500.0,9.793e-05,2]
[342285409,1731694255843,-534.78,9.793e-05,2]
[342285410,1731694255853,-500.0,9.793e-05,2]
[342285411,1731694255863,-500.0,9.793e-05,2]
[342285412,1731694255874,-500.0,9.793e-05,2]
[342285413,1731694255884,-500.0,9.793e-05,2]
[342285414,1731694255892,-436.90530182,9.793e-05,2]
[342285415,1731694255902,-836.25,9.793e-05,2]
[342285416,1731694255911,-13327.05,9.793e-05,2]
[342285417,1731694255920,-13327.05,9.793e-05,2]
[342285418,1731694255930,-1350.58,9.793e-05,2]
[342285419,1731694255940,-13327.05,9.793e-05,2]
[342285420,1731694255951,-586.79,9.793e-05,2]
[342285421,1731694255966,-554.64,9.793e-05,2]
[342285422,1731694255975,-554.64,9.793e-05,2]
[342285423,1731694255984,-983.62,9.793e-05,2]
[342285424,1731694255993,-554.64,9.793e-05,2]
[342285425,1731694256002,-1577.93,9.793e-05,2]
[342285426,1731694256014,-500.0,9.793e-05,2]
[342285427,1731694256023,-4119.01,9.793e-05,2]
[342285428,1731694256033,-1186.42,9.793e-05,2]
[342285429,1731694256043,-1186.42,9.793e-05,2]
[342285430,1731694256053,-500.0,9.793e-05,2]
[342285431,1731694256062,-500.0,9.793e-05,2]
[342285432,1731694256072,-500.0,9.793e-05,2]
[342285433,1731694256081,-500.0,9.793e-05,2]
[342285434,1731694256090,-500.0,9.793e-05,2]
[342285435,1731694256099,-500.0,9.793e-05,2]
[342285436,1731694256108,-4830.99,9.793e-05,2]
[342285437,1731694256119,-640.9,9.793e-05,2]
[342285438,1731694256128,-640.9,9.793e-05,2]
[342285439,1731694256137,-640.9,9.793e-05,2]
[342285440,1731694256146,-500.0,9.793e-05,2]
[342285441,1731694256155,-500.0,9.793e-05,2]
[342285442,1731694256164,-622.63,9.793e-05,2]
[342285443,1731694256173,-500.0,9.793e-05,2]
[342285444,1731694256183,-1268.43,9.793e-05,2]
[342285445,1731694256192,-1268.43,9.793e-05,2]
[342285446,1731694256201,-1268.43,9.793e-05,2]
[342285447,1731694256211,-500.0,9.793e-05,2]
[342285448,1731694256222,-500.0,9.793e-05,2]
[342285449,1731694256232,-500.0,9.793e-05,2]
[342285450,1731694256241,-500.0,9.793e-05,2]
[342285451,1731694256251,-500.0,9.793e-05,2]
[342285452,1731694256260,-500.0,9.793e-05,2]
[342285453,1731694256270,-500.0,9.793e-05,2]
[342285454,1731694256279,-3074.17,9.793e-05,2]
[342285455,1731694256289,-1482.6,9.793e-05,2]
[342285456,1731694256299,-1482.6,9.793e-05,2]
[342285457,1731694256308,-500.0,9.793e-05,2]
[342285458,1731694256318,-855.59,9.793e-05,2]
[342285459,1731694256327,-500.0,9.793e-05,2]
[342285460,1731694256336,-500.0,9.793e-05,2]
[342285461,1731694256347,-500.0,9.793e-05,2]
[342285462,1731694256358,-1020.8,9.793e-05,2]
[342285463,1731694256368,-500.0,9.793e-05,2]
[342285464,1731694256377,-500.0,9.793e-05,2]
[342285465,1731694256387,-500.0,9.793e-05,2]
[342285466,1731694256398,-1908.07,9.793e-05,2]
[342285467,1731694256409,-500.0,9.793e-05,2]
[342285468,1731694256419,-1382.63,9.793e-05,2]
[342285469,1731694256430,-500.0,9.793e-05,2]
[342285470,1731694256441,-500.0,9.793e-05,2]
[342285471,1731694256453,-500.0,9.793e-05,2]
[342285472,1731694256463,-500.0,9.793e-05,2]
[342285473,1731694256474,-500.0,9.793e-05,2]
[342285474,1731694256605,-1292.91,9.793e-05,2]
[342285475,1731694256615,-1292.91,9.793e-05,2]
[342285476,1731694256624,-1292.91,9.793e-05,2]
[342285477,1731694256634,-1931.56,9.793e-05,2]
[342285478,1731694256643,-1931.56,9.793e-05,2]
[342285479,1731694256652,-500.0,9.793e-05,2]
[342285480,1731694256662,-500.0,9.793e-05,2]
[342285481,1731694256672,-663.56,9.793e-05,2]
[342285482,1731694256682,-600.7,9.793e-05,2]
[342285483,1731694256691,-1022.4,9.793e-05,2]
[342285484,1731694256701,-500.0,9.793e-05,2]
[342285485,1731694256711,-500.0,9.793e-05,2]
[342285486,1731694256721,-566.3995617,9.793e-05,2]
[342285487,1731694256731,-1470.93,9.793e-05,2]
[342285488,1731694256740,-1470.93,9.793e-05,2]
[342285489,1731694256750,-1470.93,9.793e-05,2]
[342285490,1731694256759,-500.0,9.793e-05,2]
[342285491,1731694256768,-681.85,9.793e-05,2]
[342285492,1731694256779,-3295.15,9.793e-05,2]
[342285493,1731694256788,-2363.83,9.793e-05,2]
[342285494,1731694256798,-554.82,9.793e-05,2]
[342285495,1731694256808,-554.82,9.793e-05,2]
[342285496,1731694256817,-500.0,9.793e-05,2]
[342285497,1731694256827,-500.0,9.793e-05,2]
[342285498,1731694256837,-500.0,9.793e-05,2]
[342285499,1731694256847,-500.0,9.793e-05,2]
[342285500,1731694256856,-652.61,9.793e-05,2]
[342285501,1731694256867,-823.21,9.793e-05,2]
[342285502,1731694256877,-500.0,9.793e-05,2]
[342285503,1731694256888,-1052.67,9.793e-05,2]
[342285504,1731694256899,-2854.94,9.793e-05,2]
[342285505,1731694256910,-386.71766419,9.793e-05,2]
[342285506,1731694256920,-817.4,9.793e-05,2]
[342285507,1731694256929,-500.0,9.793e-05,2]
[342285508,1731694256939,-500.0,9.793e-05,2]
[342285509,1731694256950,-500.0,9.794e-05,2]
[342285510,1731694256965,-500.0,9.794e-05,2]
[342285511,1731694256975,-500.0,9.794e-05,2]
[342285512,1731694256984,-500.0,9.794e-05,2]
[342285513,1731694256994,-500.0,9.794e-05,2]
[342285514,1731694257005,-500.0,9.794e-05,2]
[342285515,1731694257015,-500.0,9.794e-05,2]
[342285516,1731694257025,-223.30850606,9.794e-05,2]
[342285517,1731694257038,-500.0,9.794e-05,2]
[342285518,1731694257047,-305.54140122,9.794e-05,2]
[342285519,1731694257058,-500.0,9.794e-05,2]
[342285520,1731694257067,-500.0,9.794e-05,2]
[342285521,1731694257077,-500.0,9.794e-05,2]
[342285522,1731694257087,-500.0,9.794e-05,2]
[342285523,1731694257097,-500.0,9.794e-05,2]
[342285524,1731694257106,-500.0,9.794e-05,2]
[342285525,1731694257116,-500.0,9.794e-05,2]
[342285526,1731694257125,-500.0,9.794e-05,2]
[342285527,1731694257135,-233.74010255,9.794e-05,2]
[342285528,1731694257145,-500.0,9.794e-05,2]
[342285529,1731694257154,-500.0,9.794e-05,2]
[342285530,1731694257163,-500.0,9.794e-05,2]
[342285531,1731694257172,-500.0,9.794e-05,2]
[342285532,1731694257182,-528.75708362,9.794e-05,2]
[342285533,1731694257191,-267.66182216,9.794e-05,2]
[342285534,1731694257200,-557.30074226,9.794e-05,2]
[342285535,1731694257210,-500.0,9.794e-05,2]
[342285536,1731694257219,-500.0,9.794e-05,2]
[342285537,1731694257229,-500.0,9.794e-05,2]
[342285538,1731694257238,-500.0,9.794e-05,2]
[342285539,1731694257251,-500.0,9.794e-05,2]
[342285540,1731694257262,-500.0,9.794e-05,2]
[342285541,1731694257272,-882.17,9.794e-05,2]
[342285542,1731694257283,-500.0,9.794e-05,2]
[342285543,1731694257292,-500.0,9.794e-05,2]
[342285544,1731694257302,-500.0,9.794e-05,2]
[342285545,1731694257311,-500.0,9.794e-05,2]
[342285546,1731694257321,-500.0,9.794e-05,2]
[342285547,1731694257331,-500.0,9.794e-05,2]
[342285548,1731694257341,-500.0,9.794e-05,2]
[342285549,1731694257350,-1519.16,9.794e-05,2]
[342285550,1731694257359,-500.0,9.794e-05,2]
[342285551,1731694257369,-500.0,9.794e-05,2]
[342285552,1731694257378,-993.42,9.794e-05,2]
[342285553,1731694257388,-500.0,9.794e-05,2]
[342285554,1731694257398,-500.0,9.794e-05,2]
[342285555,1731694257407,-500.0,9.794e-05,2]
[342285556,1731694257417,-500.0,9.794e-05,2]
[342285557,1731694257426,-500.0,9.794e-05,2]
[342285558,1731694257436,-1344.39,9.794e-05,2]
[342285559,1731694257446,-500.0,9.794e-05,2]
[342285560,1731694257456,-500.0,9.794e-05,2]
[342285561,1731694257466,-500.0,9.794e-05,2]
[342285562,1731694257476,-500.0,9.794e-05,2]
[342285563,1731694257486,-957.26,9.794e-05,2]
[342285564,1731694257495,-1742.35,9.794e-05,2]
[342285565,1731694257505,-500.0,9.794e-05,2]
[342285566,1731694257515,-470.09715896,9.794e-05,2]
[342285567,1731694257525,-500.0,9.794e-05,2]
[342285568,1731694257535,-500.0,9.794e-05,2]